bitfinex-derivatives/quotes_SOLF0:USTF0_20260215
["timestamp","ask_amount","ask_price","bid_price","bid_amount"]
[1771129840328,9.6194901,88.445,88.405,76.62324686]
[1771129840525,9.6194901,88.444,88.405,76.62324686]
[1771129840725,9.6194901,88.443,88.405,76.62324686]
[1771129840930,9.6194901,88.442,88.405,76.62324686]
[1771129841131,9.6194901,88.441,88.405,76.62324686]
[1771129841426,9.61813377,88.446,88.405,76.62324686]
[1771129841633,9.61813377,88.445,88.405,76.62324686]
[1771129841828,10.1781,88.456,88.405,76.62324686]
[1771129842030,9.61813044,88.455,88.405,76.62324686]
[1771129842232,9.61813044,88.454,88.405,76.62324686]
[1771129842434,10.54024743,88.498,88.405,76.62324686]
[1771129842435,10.54024743,88.513,88.405,76.62324686]
[1771129842734,8.53118096,88.516,88.405,76.62324686]
[1771129842923,8.53118096,88.516,88.417,71.81910604]
[1771129842924,10.1756,88.477,88.417,71.81910604]
[1771129843726,10.1756,88.477,88.42,71.74674234]
[1771129845836,10.1746,88.487,88.423,71.73362366]
[1771129846033,98.2,88.504,88.423,71.73362366]
[1771129846534,98.2,88.504,88.423,81.91552366]
[1771129846735,98.2,88.504,88.423,71.73362366]
[1771129847938,10.1749,88.484,88.423,71.73362366]
[1771129848133,117.0,88.483,88.423,71.73362366]
[1771129848641,10.1739,88.492,88.425,71.72996388]
[1771129849838,10.1739,88.492,88.43,71.70155446]
[1771129850339,117.0,88.491,88.43,71.70155446]
[1771129850940,10.1742,88.49,88.43,71.70155446]
[1771129851542,98.2,88.504,88.376,11.3]
[1771129851543,10.1731,88.5,88.434,71.84390039]
[1771129852534,10.1731,88.5,88.436,71.84390039]
[1771129852737,10.1717,88.512,88.436,71.84390039]
[1771129853738,10.1717,88.512,88.448,71.84695215]
[1771129854943,226.98687978,88.55,88.45,71.84695215]
[1771129855344,10.1694,88.532,88.463,10.1772]
[1771129855538,10.1694,88.532,88.464,71.84702616]
[1771129855839,449.92687978,88.55,88.464,71.84702616]
[1771129856635,226.98687978,88.55,88.464,71.84702616]
[1771129856849,10.1682,88.542,88.464,71.84702616]
[1771129859240,10.1692,88.533,88.464,71.84702616]
[1771129860337,2.28836507,88.54,88.481,71.90150062]
[1771129860544,2.28836507,88.54,88.491,71.90150062]
[1771129860745,223.28,88.549,88.491,71.90150062]
[1771129861246,2.28836507,88.55,88.491,71.90150062]
[1771129861441,224.28,88.557,88.491,71.90150062]
[1771129861442,2.28836507,88.54,88.491,71.90150062]
[1771129862041,2.28836507,88.55,88.5,2.28836507]
[1771129862239,2.28836507,88.55,88.501,71.90172196]
[1771129862640,2.28836507,88.54,88.501,71.90172196]
[1771129863740,2.28836507,88.55,88.501,71.90172196]
[1771129864142,2.28836507,88.52,88.47,74.14677613]
[1771129864342,2.28836507,88.52,88.47,71.85841106]
[1771129864537,2.28836507,88.49,88.452,71.85841106]
[1771129864737,2.28836507,88.5,88.452,71.85841106]
[1771129865244,2.28836507,88.51,88.452,71.85841106]
[1771129865739,2.28836507,88.5,88.452,71.85841106]
[1771129866041,2.28836507,88.48,88.431,71.86530669]
[1771129867337,90.04,88.498,88.431,71.86530669]
[1771129867540,2.28836507,88.49,88.431,71.86530669]
[1771129868651,2.28836507,88.49,88.389,90.04]
[1771129868652,158.1017,88.582,88.461,71.88846899]
[1771129868846,2.28836507,88.52,88.471,71.88846899]
[1771129870149,2.28836507,88.53,88.471,71.88846899]
[1771129870454,10.1698,88.529,88.471,71.88846899]
[1771129871149,10.1709,88.518,88.471,71.88846899]
[1771129871942,10.1726,88.504,88.436,71.86936352]
[1771129872644,10.1739,88.493,88.436,71.86936352]
[1771129874156,123.24,88.504,88.436,71.86936352]
[1771129875651,123.24,88.504,88.438,71.90338737]
[1771129875951,6.1304792,88.54,88.438,71.90338737]
[1771129876152,253.28,88.539,88.438,71.90338737]
[1771129876353,10.1725,88.504,88.438,71.90338737]
[1771129876551,117.0,88.519,88.438,71.90338737]
[1771129877457,103.16,88.518,88.438,71.90338737]
[1771129877845,10.1738,88.494,88.438,71.90338737]
[1771129878249,103.16,88.518,88.438,71.90338737]
[1771129878850,10.1652,88.569,88.474,10.1759]
[1771129879154,20.3195,88.616,88.405,20.3677]
[1771129879155,6.1304792,88.56,88.481,13.39866861]
[1771129879560,6.1304792,88.54,88.481,13.39866861]
[1771129881460,16.2966792,88.56,88.481,13.39866861]
[1771129881663,164.02,88.559,88.481,13.39866861]
[1771129883456,10.1664,88.558,88.481,13.39866861]
[1771129884158,1.9660295,88.594,88.481,13.39866861]
[1771129884461,10.1605,88.609,88.515,13.2374361]
[1771129884672,90.06,88.609,88.515,13.2374361]
[1771129884863,90.06,88.609,88.533,13.2374361]
[1771129886161,16.2908792,88.61,88.533,13.2374361]
[1771129887164,6.1304792,88.61,88.536,13.14333264]
[1771129888058,6.1304792,88.61,88.51,6.1304792]
[1771129888059,90.06,88.613,88.538,13.14333264]
[1771129888461,10.1568,88.642,88.559,13.14333264]
[1771129888656,6.1304792,88.66,88.559,13.14333264]
[1771129888855,201.6104792,88.66,88.571,13.14333264]
[1771129889261,10.1553,88.654,88.578,13.12551091]
[1771129890063,6.1304792,88.64,88.578,13.12551091]
[1771129892174,10.1571,88.639,88.578,13.12551091]
[1771129892369,6.1304792,88.64,88.501,20.3457]
[1771129892370,223.98,88.638,88.562,13.11902291]
[1771129892567,6.1304792,88.62,88.562,13.11902291]
[1771129892969,116.06,88.679,88.562,13.11902291]
[1771129893176,26.0,88.679,88.581,13.11902291]
[1771129893371,6.1304792,88.66,88.583,12.8372501]
[1771129894372,10.1548,88.659,88.583,12.8372501]
[1771129894569,1.96360559,88.704,88.583,12.8372501]
[1771129894879,10.1515,88.688,88.602,12.8372501]
[1771129895069,90.06,88.687,88.602,12.8372501]
[1771129895266,6.1304792,88.71,88.602,12.8372501]
[1771129895470,90.06,88.686,88.621,12.73194685]
[1771129896268,10.1501,88.7,88.621,12.73194685]
[1771129896471,224.36,88.699,88.621,12.73194685]
[1771129896674,10.1486,88.713,88.621,12.73194685]
[1771129896868,224.4,88.712,88.621,12.73194685]
[1771129897076,224.4,88.712,88.624,10.1587]
[1771129897381,224.4,88.712,88.625,12.68608724]
[1771129897575,6.1304792,88.72,88.625,12.68608724]
[1771129897776,224.96,88.719,88.625,12.68608724]
[1771129898475,6.1304792,88.7,88.625,12.68608724]
[1771129898675,6.1304792,88.68,88.625,12.68608724]
[1771129898974,225.4,88.679,88.625,12.68608724]
[1771129899280,10.153,88.675,88.597,12.91290295]
[1771129899687,205.32,88.674,88.597,12.91290295]
[1771129900183,6.1304792,88.66,88.551,12.91290295]
[1771129900573,157.7,88.659,88.551,12.91290295]
[1771129900881,6.1304792,88.64,88.551,12.91290295]
[1771129901280,10.1579,88.632,88.558,12.98226189]
[1771129901781,6.1304792,88.62,88.558,12.98226189]
[1771129902578,10.1594,88.619,88.558,12.98226189]
[1771129902778,127.62,88.618,88.558,12.98226189]
[1771129903076,10.1597,88.616,88.558,12.98226189]
[1771129903280,6.1304792,88.62,88.558,12.98226189]
[1771129903479,90.06,88.619,88.558,12.98226189]
[1771129903680,6.1304792,88.6,88.541,13.00488543]
[1771129903983,95.22,88.618,88.541,13.00488543]
[1771129904182,6.1304792,88.61,88.541,13.00488543]
[1771129904579,10.1629,88.588,88.524,13.00488543]
[1771129904777,90.06,88.587,88.524,13.00488543]
[1771129905179,6.1304792,88.57,88.524,13.00488543]
[1771129905678,10.1654,88.567,88.507,12.96289427]
[1771129906885,10.1661,88.561,88.507,12.96289427]
[1771129907380,90.06,88.566,88.507,12.96289427]
[1771129907586,6.1304792,88.56,88.507,12.96289427]
[1771129907988,90.06,88.559,88.507,12.96289427]
[1771129908284,90.06,88.559,88.472,12.97161983]
[1771129908483,6.1304792,88.54,88.472,12.97161983]
[1771129908678,90.06,88.539,88.472,12.97161983]
[1771129908883,6.1304792,88.54,88.472,12.97161983]
[1771129909084,95.22,88.539,88.472,12.97161983]
[1771129909786,100.34,88.538,88.472,12.97161983]
[1771129911288,6.1304792,88.52,88.472,12.97161983]
[1771129911990,90.06,88.519,88.472,12.97161983]
[1771129912384,6.1304792,88.52,88.472,12.97161983]
[1771129912586,90.06,88.519,88.472,12.97161983]
[1771129912986,6.1304792,88.52,88.472,12.97161983]
[1771129913188,90.06,88.519,88.472,12.97161983]
[1771129913785,10.169,88.535,88.472,12.97161983]
[1771129913985,6.1304792,88.54,88.472,12.97161983]
[1771129913986,90.06,88.534,88.472,12.97161983]
[1771129914888,6.1304792,88.54,88.472,12.97161983]
[1771129915086,10.1664,88.558,88.472,12.97161983]
[1771129915286,204.76,88.557,88.472,12.97161983]
[1771129915485,204.76,88.557,88.476,13.03891848]
[1771129916691,204.76,88.557,88.46,6.1304792]
[1771129916692,10.1668,88.554,88.478,13.03891848]
[1771129918597,6.1304792,88.55,88.478,13.03891848]
[1771129918996,6.12905851,88.55,88.478,13.03891848]
[1771129919590,10.49511059,88.704,88.541,9.93276575]
[1771129919799,157.8391,88.729,88.546,9.93276575]
[1771129919800,6.12905851,88.63,88.546,9.93276575]
[1771129919994,227.82,88.629,88.546,9.93276575]
[1771129921798,227.82,88.629,88.55,9.85801543]
[1771129922103,6.12905851,88.63,88.55,9.85801543]
[1771129922313,6.12905851,88.66,88.561,9.85801543]
[1771129922606,6.12905851,88.66,88.56,6.12905851]
[1771129922607,6.12905851,88.66,88.581,9.85801543]
[1771129923609,6.12905851,88.68,88.588,9.84469571]
[1771129923799,90.06,88.679,88.588,9.84469571]
[1771129923998,6.12905851,88.74,88.62,10.1591]
[1771129923999,10.1465,88.732,88.62,10.1591]
[1771129924204,6.12905851,88.74,88.58,6.12905851]
[1771129924205,6.12905851,88.68,88.602,9.8435313]
[1771129924503,90.08,88.679,88.602,9.8435313]
[1771129925210,6.12905851,88.66,88.602,9.8435313]
[1771129925703,108.36,88.659,88.602,9.8435313]
[1771129926302,141.26,88.658,88.602,9.8435313]
[1771129929913,165.8,88.657,88.602,9.8435313]
[1771129930110,165.8,88.657,88.576,9.79661357]
[1771129930312,6.12905851,88.66,88.576,9.79661357]
[1771129930511,90.06,88.659,88.576,9.79661357]
[1771129935612,116.06,88.659,88.576,9.79661357]
[1771129937816,6.12905851,88.64,88.576,9.79661357]
[1771129938219,100.38,88.639,88.576,9.79661357]
[1771129939820,100.38,88.639,88.579,9.74643023]
[1771129941214,100.38,88.639,88.583,9.72172092]
[1771129942021,0.32990942,88.657,88.583,9.72172092]
[1771129942221,145.40990942,88.657,88.583,9.72172092]
[1771129942921,6.12905851,88.67,88.605,9.71805607]
[1771129943821,6.12905851,88.67,88.607,10.1607]
[1771129944019,6.12905851,88.67,88.608,9.82599086]
[1771129944214,1.12563154,88.669,88.608,9.82599086]
[1771129944822,6.12905851,88.65,88.561,9.82515422]
[1771129945024,1.12563154,88.649,88.561,9.82515422]
[1771129945220,1.64456972,88.647,88.561,9.82515422]
[1771129945415,10.1568,88.642,88.561,9.82515422]
[1771129945622,6.12905851,88.63,88.569,9.81215103]
[1771129946719,6.12905851,88.63,88.582,10.1636]
[1771129947321,1.64456972,88.641,88.582,10.1636]
[1771129952528,1.64456972,88.641,88.569,9.81215103]
[1771129953727,1.64456972,88.641,88.578,9.89691796]
[1771129954627,1.64456972,88.641,88.579,10.1639]
[1771129954828,1.64456972,88.641,88.58,9.89757304]
[1771129956937,6.54052415,88.629,88.541,9.89525474]
[1771129957132,6.96964338,88.627,88.541,9.89525474]
[1771129957333,6.96964338,88.627,88.567,10.1652]
[1771129958032,6.96964338,88.627,88.567,20.12725077]
[1771129959526,7.03178434,88.625,88.567,20.12725077]
[1771129960933,7.03178434,88.625,88.571,10.1648]
[1771129963833,7.03178434,88.625,88.53,6.12905851]
[1771129963834,7.03178434,88.625,88.579,10.1638]
[1771129964430,7.03178434,88.625,88.572,13.94350856]
[1771129968843,2.28392988,88.61,88.572,13.94350856]
[1771129970144,2.28392988,88.62,88.572,13.94350856]
[1771129971737,2.28392988,88.62,88.574,10.1644]
[1771129972044,2.28392988,88.62,88.575,13.94350856]
[1771129975542,2.28392988,88.62,88.576,10.1642]
[1771129975740,2.28392988,88.62,88.577,13.94350856]
[1771129977446,2.28392988,88.61,88.567,13.94350856]
[1771129978535,2.28392988,88.61,88.569,10.165]
[1771129978737,2.28392988,88.61,88.57,13.94350856]
[1771129979744,2.28392988,88.61,88.573,10.1646]
[1771129980147,2.28392988,88.61,88.57,13.94350856]
[1771129980148,2.28392988,88.6,88.57,13.94350856]
[1771129980745,2.28392988,88.58,88.551,13.94350856]
[1771129980946,2.28557182,88.58,88.524,13.94350856]
[1771129981142,2.28557182,88.57,88.535,13.94350856]
[1771129981745,2.28557182,88.57,88.539,10.1684]
[1771129982343,90.06,88.592,88.544,13.94350856]
[1771129982544,2.28557182,88.58,88.544,13.94350856]
[1771129983349,2.28557182,88.6,88.544,13.94350856]
[1771129983651,2.28557182,88.59,88.544,13.94350856]
[1771129983843,2.28557182,88.59,88.53,2.28557182]
[1771129983844,7.182e-05,88.59,88.563,10.1657]
[1771129984044,2.28557182,88.6,88.564,13.94350856]
[1771129984749,2.28557182,88.6,88.565,10.1655]
[1771129985346,2.28557182,88.64,88.58,2.28557182]
[1771129985655,10.1543,88.663,88.536,90.06]
[1771129985656,2.28557182,88.65,88.601,13.94350856]
[1771129985849,2.28557182,88.66,88.611,13.94350856]
[1771129986047,2.28557182,88.67,88.611,13.94350856]
[1771129986346,13.50421545,88.673,88.611,13.94350856]
[1771129986549,2.28557182,88.66,88.611,13.94350856]
[1771129986746,2.28557182,88.67,88.611,13.94350856]
[1771129986949,2.28557182,88.66,88.611,13.94350856]
[1771129987249,13.50421545,88.713,88.646,13.94350856]
[1771129987454,2.28557182,88.71,88.661,13.94350856]
[1771129987853,2.28557182,88.68,88.645,13.94350856]
[1771129988260,2.28557182,88.7,88.645,13.94350856]
[1771129988559,2.28557182,88.7,88.653,13.94350856]
[1771129990257,2.28557182,88.7,88.654,10.1553]
[1771129990559,2.28557182,88.7,88.655,13.94350856]
[1771129990751,2.28557182,88.7,88.582,33.94]
[1771129990752,229.62557182,88.71,88.661,13.94350856]
[1771129990955,227.34,88.71,88.661,13.94350856]
[1771129995071,18.19419118,88.709,88.661,13.94350856]
[1771129996371,18.19419118,88.709,88.651,10.1556]
[1771129998169,229.64,88.708,88.654,19.44951596]
[1771129998368,18.19419118,88.707,88.638,19.44951596]
[1771129998572,18.19419118,88.699,88.611,19.44951596]
[1771129998773,18.19419118,88.699,88.631,19.44951596]
[1771129999373,18.19419118,88.697,88.64,10.1568]
[1771130000171,6.10402946,88.65,88.611,10.1602]
[1771130000468,6.10402946,88.67,88.593,19.44951596]
[1771130000672,90.02,88.669,88.623,10.1589]
[1771130000860,229.92,88.668,88.62,19.44951596]
[1771130001061,18.19419118,88.666,88.62,19.44951596]
[1771130001468,230.0,88.665,88.62,19.44951596]
[1771130002169,18.19419118,88.666,88.62,19.44951596]
[1771130002363,230.24,88.664,88.62,19.44951596]
[1771130007072,18.19419118,88.663,88.581,19.44951596]
[1771130007271,250.17419118,88.663,88.581,19.44951596]
[1771130007668,18.19419118,88.662,88.581,19.44951596]
[1771130008070,18.19419118,88.662,88.59,19.44951596]
[1771130009471,6.10402946,88.67,88.58,6.10402946]
[1771130009472,180.08,88.661,88.601,19.44951596]
[1771130010776,180.08,88.661,88.602,10.1612]
[1771130010976,2.2813776,88.66,88.603,19.44951596]
[1771130011470,2.2813776,88.66,88.605,19.44951596]
[1771130011675,2.2813776,88.66,88.61,2.2813776]
[1771130011976,2.2813776,88.66,88.611,19.44951596]
[1771130012474,2.2813776,88.66,88.612,10.16]
[1771130012665,2.2813776,88.66,88.613,19.44951596]
[1771130013070,2.2813776,88.66,88.559,20.3324]
[1771130013071,2.2813776,88.68,88.621,19.44951596]
[1771130013370,2.2813776,88.68,88.631,19.44951596]
[1771130013875,2.2813776,88.68,88.632,19.44951596]
[1771130014472,2.2813776,88.69,88.642,19.44951596]
[1771130014680,235.1413776,88.7,88.642,19.44951596]
[1771130015479,235.1413776,88.7,88.644,10.1564]
[1771130015777,235.1413776,88.7,88.645,19.44951596]
[1771130015969,2.2813776,88.69,88.645,19.44951596]
[1771130017180,2.2813776,88.68,88.638,10.1571]
[1771130018275,296.0,88.749,88.661,19.44951596]
[1771130018276,18.19419118,88.725,88.661,19.44951596]
[1771130018473,2.2813776,88.73,88.671,19.44951596]
[1771130018674,18.19419118,88.74,88.701,10.1499]
[1771130018980,2.2813776,88.73,88.677,19.44951596]
[1771130019571,2.2813776,88.73,88.687,10.1514]
[1771130020475,2.2813776,88.72,88.687,10.1514]
[1771130021378,2.2813776,88.72,88.677,19.44951596]
[1771130021579,2.2813776,88.71,88.675,10.1529]
[1771130022980,93.44,88.711,88.675,10.1529]
[1771130023173,2.2813776,88.71,88.675,10.1529]
[1771130023868,93.44,88.711,88.648,10.156]
[1771130023869,7.76e-05,88.68,88.648,10.156]
[1771130025584,148.9613776,88.69,88.654,10.1553]
[1771130025776,2.2813776,88.68,88.654,10.1553]
[1771130026581,7.76e-05,88.68,88.654,10.1553]
[1771130028880,21.23053641,88.689,88.634,20.83785359]
[1771130029182,172.16,88.69,88.591,20.83785359]
[1771130029183,21.23053641,88.687,88.591,20.83785359]
[1771130029584,21.23053641,88.687,88.617,20.83785359]
[1771130030280,21.23053641,88.687,88.625,10.1586]
[1771130030477,21.23053641,88.687,88.617,20.83785359]
[1771130030478,196.88,88.689,88.626,20.83785359]
[1771130031888,196.88,88.689,88.629,20.83785359]
[1771130032386,6.10926722,88.69,88.629,20.83785359]
[1771130032687,222.68,88.69,88.629,20.83785359]
[1771130033075,21.23053641,88.699,88.631,20.83785359]
[1771130033281,236.0,88.698,88.631,20.83785359]
[1771130033482,257.23053641,88.698,88.631,20.83785359]
[1771130033676,21.23053641,88.713,88.647,20.83785359]
[1771130034488,21.23053641,88.713,88.66,20.83785359]
[1771130036286,10.1461,88.735,88.66,20.83785359]
[1771130036483,21.23053641,88.739,88.672,20.83785359]
[1771130036681,6.10926722,88.74,88.672,20.83785359]
[1771130036682,21.23053641,88.737,88.672,20.83785359]
[1771130037380,236.7,88.738,88.656,20.83785359]
[1771130037381,21.23053641,88.719,88.656,20.83785359]
[1771130037587,21.23053641,88.717,88.656,20.83785359]
[1771130038289,6.10926722,88.7,88.656,20.83785359]
[1771130038787,21.23053641,88.703,88.656,20.83785359]
[1771130039091,237.2,88.714,88.656,20.83785359]
[1771130039986,237.2,88.714,88.658,20.83785359]
[1771130040291,6.10926722,88.72,88.658,20.83785359]
[1771130040687,233.52,88.732,88.658,20.83785359]
[1771130040985,297.61213733,88.744,88.658,20.83785359]
[1771130041190,21.23053641,88.757,88.698,20.83785359]
[1771130041391,21.23053641,88.755,88.698,20.83785359]
[1771130041590,6.10926722,88.76,88.698,20.83785359]
[1771130041786,21.23053641,88.759,88.706,20.83785359]
[1771130041987,21.23053641,88.757,88.706,20.83785359]
[1771130042291,21.23053641,88.757,88.683,20.83785359]
[1771130042484,21.23053641,88.739,88.683,20.83785359]
[1771130042698,21.23053641,88.737,88.683,20.83785359]
[1771130043889,21.23053641,88.719,88.643,20.83785359]
[1771130044889,21.23053641,88.719,88.659,20.83785359]
[1771130046387,21.23053641,88.738,88.659,20.83785359]
[1771130046891,21.23053641,88.738,88.661,20.83785359]
[1771130047292,21.23053641,88.753,88.701,20.83785359]
[1771130047883,21.23053641,88.753,88.702,10.1498]
[1771130048084,238.86,88.755,88.703,20.83785359]
[1771130048285,21.23053641,88.769,88.703,20.83785359]
[1771130048592,260.21053641,88.768,88.703,20.83785359]
[1771130049587,260.21053641,88.768,88.709,20.83785359]
[1771130049792,21.23053641,88.768,88.709,20.83785359]
[1771130049993,239.38,88.767,88.709,20.83785359]
[1771130050490,21.23053641,88.766,88.709,20.83785359]
[1771130050890,21.23053641,88.764,88.709,20.83785359]
[1771130051291,21.23053641,88.759,88.704,10.1496]
[1771130051487,240.32,88.758,88.704,10.1496]
[1771130051793,21.23053641,88.757,88.691,20.83785359]
[1771130051999,21.23053641,88.755,88.645,20.83785359]
[1771130052190,21.23053641,88.739,88.645,20.83785359]
[1771130052390,21.23053641,88.739,88.674,20.83785359]
[1771130052893,240.5,88.738,88.674,20.83785359]
[1771130053492,240.5,88.738,88.694,22.18914417]
[1771130053696,240.72,88.761,88.694,22.18914417]
[1771130054201,23.05870064,88.759,88.697,32.33944417]
[1771130054690,6.10283668,88.74,88.685,22.18914417]
[1771130055089,23.05870064,88.753,88.685,22.18914417]
[1771130055291,241.06,88.752,88.702,10.1498]
[1771130055492,241.06,88.752,88.685,22.18914417]
[1771130055697,23.05870064,88.751,88.685,22.18914417]
[1771130055886,23.05870064,88.751,88.69,10.1511]
[1771130056088,23.05870064,88.751,88.69,32.34024417]
[1771130056287,23.05870064,88.751,88.693,22.18914417]
[1771130058093,23.05870064,88.751,88.688,10.1514]
[1771130058992,23.05870064,88.739,88.678,22.18914417]
[1771130060292,23.05870064,88.737,88.678,22.18914417]
[1771130065211,23.05870064,88.737,88.68,10.1523]
[1771130067010,23.05870064,88.735,88.678,22.18914417]
[1771130067713,23.05870064,88.719,88.662,32.34354417]
[1771130068710,23.05870064,88.714,88.648,32.34514417]
[1771130068916,2.28006952,88.69,88.648,32.34514417]
[1771130069111,2.28006952,88.68,88.648,22.18914417]
[1771130069412,163.26,88.685,88.648,22.18914417]
[1771130070214,2.28006952,88.68,88.648,22.18914417]
[1771130070418,2.28006952,88.68,88.637,22.18914417]
[1771130070710,2.28006952,88.67,88.627,10.1584]
[1771130070914,23.05870064,88.684,88.623,22.18914417]
[1771130071113,23.05870064,88.682,88.623,22.18914417]
[1771130071616,23.05870064,88.682,88.599,22.18914417]
[1771130071617,6.10991577,88.67,88.599,22.18914417]
[1771130072017,23.05870064,88.669,88.599,22.18914417]
[1771130072709,23.05870064,88.669,88.61,22.18914417]
[1771130074420,23.05870064,88.667,88.61,22.18914417]
[1771130076425,23.05870064,88.665,88.61,22.18914417]
[1771130077121,23.05870064,88.665,88.612,10.16]
[1771130077324,23.05870064,88.665,88.612,32.34914417]
[1771130077925,23.05870064,88.665,88.612,22.18914417]
[1771130079926,23.05870064,88.665,88.614,22.18914417]
[1771130083129,21.9803834,88.673,88.625,22.55845756]
[1771130085830,21.9803834,88.673,88.626,32.71695756]
[1771130086127,21.9803834,88.673,88.627,22.55845756]
[1771130087831,21.9803834,88.673,88.632,10.1578]
[1771130089027,6.10991577,88.69,88.639,10.157]
[1771130089236,21.9803834,88.695,88.633,22.55845756]
[1771130090735,21.9803834,88.695,88.648,32.71445756]
[1771130090934,2.27982296,88.67,88.62,22.55845756]
[1771130091431,2.27982296,88.67,88.624,10.1587]
[1771130091633,2.27982296,88.67,88.587,442.08946373]
[1771130091634,2.27982296,88.65,88.601,22.55845756]
[1771130091825,24.26020636,88.66,88.601,22.55845756]
[1771130092328,24.26020636,88.66,88.611,22.55845756]
[1771130092728,24.26020636,88.66,88.615,22.55845756]
[1771130092930,90.02,88.685,88.615,22.55845756]
[1771130093236,6.11027816,88.69,88.615,22.55845756]
[1771130093530,21.9803834,88.691,88.646,22.55845756]
[1771130094628,21.9803834,88.691,88.61,6.11027816]
[1771130094629,21.9803834,88.691,88.636,10.1573]
[1771130095230,21.9803834,88.689,88.627,22.55845756]
[1771130097330,21.9803834,88.723,88.655,22.55845756]
[1771130098340,21.9803834,88.723,88.665,22.55845756]
[1771130099432,21.9803834,88.723,88.666,10.1539]
[1771130099628,21.9803834,88.723,88.666,32.71235756]
[1771130100535,21.9803834,88.723,88.666,22.55845756]
[1771130101536,21.9803834,88.723,88.666,32.71235756]
[1771130102639,10.148,88.719,88.655,10.1552]
[1771130102844,246.6,88.725,88.649,22.55845756]
[1771130102845,21.9803834,88.709,88.649,22.55845756]
[1771130103041,21.9803834,88.709,88.61,6.11027816]
[1771130103042,21.9803834,88.707,88.617,22.55845756]
[1771130103341,6.11027816,88.73,88.635,10.1574]
[1771130103342,21.9803834,88.689,88.635,10.1574]
[1771130105446,21.9803834,88.686,88.633,22.55845756]
[1771130106648,21.9803834,88.72,88.637,22.55845756]
[1771130106841,21.9803834,88.735,88.651,22.55845756]
[1771130107041,21.9803834,88.735,88.681,22.55845756]
[1771130108345,21.9803834,88.735,88.682,10.152]
[1771130110452,250.28,88.743,88.687,22.55845756]
[1771130110654,21.9803834,88.742,88.661,22.55845756]
[1771130110856,21.9803834,88.729,88.661,22.55845756]
[1771130111955,21.9803834,88.729,88.668,10.1537]
[1771130112356,21.9803834,88.727,88.668,10.1537]
[1771130112659,21.9803834,88.727,88.661,22.55845756]
[1771130112855,122.86,88.726,88.661,22.55845756]
[1771130113054,21.9803834,88.725,88.661,22.55845756]
[1771130113757,21.9803834,88.725,88.668,10.1537]
[1771130114258,156.38,88.724,88.668,10.1537]
[1771130114559,178.57440388,88.724,88.668,32.81314801]
[1771130114854,178.57440388,88.724,88.672,10.1532]
[1771130115152,22.19440388,88.724,88.675,22.65944801]
[1771130115850,139.92,88.735,88.686,22.65944801]
[1771130116057,22.19440388,88.741,88.686,22.65944801]
[1771130116448,22.19440388,88.741,88.688,22.65944801]
[1771130117357,22.19440388,88.739,88.688,22.65944801]
[1771130117551,22.19440388,88.739,88.651,22.65944801]
[1771130118357,22.19440388,88.739,88.674,32.81244801]
[1771130118661,22.19440388,88.739,88.675,22.65944801]
[1771130119060,22.19440388,88.737,88.676,32.81214801]
[1771130120159,22.19440388,88.737,88.682,10.152]
[1771130121257,22.19440388,88.736,88.677,22.65944801]
[1771130121556,26.0,88.772,88.672,10.1532]
[1771130121557,22.19440388,88.729,88.672,10.1532]
[1771130121764,22.19440388,88.727,88.672,10.1532]
[1771130121962,22.19440388,88.727,88.68,10.1523]
[1771130122163,22.19440388,88.727,88.663,22.65944801]
[1771130123767,22.19440388,88.727,88.67,10.1534]
[1771130124758,6.10942652,88.71,88.661,10.1545]
[1771130124960,22.19440388,88.709,88.661,10.1545]
[1771130125164,22.19440388,88.708,88.661,10.1545]
[1771130125457,22.19440388,88.708,88.669,10.1536]
[1771130125662,89.98,88.719,88.67,22.65944801]
[1771130126269,22.19440388,88.718,88.67,22.65944801]
[1771130127167,22.19440388,88.718,88.658,10.1548]
[1771130129068,22.19440388,88.718,88.662,22.65944801]
[1771130130268,22.19440388,88.718,88.665,22.65944801]
[1771130131168,22.19440388,88.718,88.666,10.1539]
[1771130131859,22.19440388,88.718,88.667,22.65944801]
[1771130132061,22.19440388,88.735,88.667,22.65944801]
[1771130132562,22.19440388,88.735,88.681,10.1522]
[1771130133164,22.19440388,88.735,88.684,22.65944801]
[1771130133866,22.19440388,88.735,88.685,10.1517]
[1771130134166,22.19440388,88.735,88.686,22.65944801]
[1771130134972,2.27785169,88.73,88.686,22.65944801]
[1771130135668,2.27785169,88.73,88.688,22.65944801]
[1771130135971,2.27785169,88.74,88.691,22.65944801]
[1771130136165,2.27785169,88.75,88.691,22.65944801]
[1771130136769,2.27785169,88.75,88.7,22.65944801]
[1771130137367,2.27785169,88.75,88.655,27.32683874]
[1771130137368,2.27785169,88.75,88.657,20.78141413]
[1771130137668,2.27785169,88.75,88.69,2.27785169]